[Event "*** Titled Tuesday Blitz"]
[Site "Chess.com"]
[Date "2021.02.16"]
[Round "2"]
[White "KNCP_719"]
[Black "FMOlexandrProhorov"]
[Result "1-0"]
[WhiteElo "2605"]
[BlackElo "2103"]
[TimeControl "180+1"]
[EndTime "10:20:15 PST"]
[Termination "KNCP_719 won on time"]

1. e4 {[%clk 0:03:00.9]} 1... c5 {[%clk 0:02:59.2]} 2. Nf3 {[%clk 0:03:00.1]}
2... e6 {[%clk 0:02:58.6]} 3. g3 {[%clk 0:02:59.8]} 3... Nc6 {[%clk 0:02:57.6]}
4. Bg2 {[%clk 0:02:59.4]} 4... d5 {[%clk 0:02:56.5]} 5. exd5 {[%clk 0:02:59.9]}
5... exd5 {[%clk 0:02:53.8]} 6. d4 {[%clk 0:03:00.3]} 6... Nf6 {[%clk
0:02:52.7]} 7. O-O {[%clk 0:02:59.9]} 7... cxd4 {[%clk 0:02:46]} 8. Nxd4 {[%clk
0:03:00.8]} 8... Be7 {[%clk 0:02:46.4]} 9. Nc3 {[%clk 0:02:41.2]} 9... O-O
{[%clk 0:02:45.9]} 10. Bg5 {[%clk 0:02:40.8]} 10... Bg4 {[%clk 0:02:42.7]} 11.
Qd2 {[%clk 0:02:29.6]} 11... h6 {[%clk 0:02:37.3]} 12. Be3 {[%clk 0:02:22.3]}
12... Ne5 {[%clk 0:02:27.5]} 13. b3 {[%clk 0:02:16]} 13... Rc8 {[%clk
0:02:25.6]} 14. h3 {[%clk 0:02:03.9]} 14... Bb4 {[%clk 0:02:15.2]} 15. Ndb5
{[%clk 0:01:26.3]} 15... Bxh3 {[%clk 0:02:11.2]} 16. a3 {[%clk 0:01:26.6]} 16...
Bxg2 {[%clk 0:02:09.6]} 17. Kxg2 {[%clk 0:01:27.5]} 17... Ne4 {[%clk 0:02:02]}
18. Qxd5 {[%clk 0:01:18.7]} 18... Nxc3 {[%clk 0:01:45.4]} 19. Qxe5 {[%clk
0:01:02.7]} 19... Nxb5 {[%clk 0:01:37.4]} 20. Qxb5 {[%clk 0:01:01.6]} 20... Bc3
{[%clk 0:01:34.4]} 21. Rad1 {[%clk 0:00:57.1]} 21... Qe7 {[%clk 0:01:29.5]} 22.
b4 {[%clk 0:00:53.3]} 22... a6 {[%clk 0:01:26.5]} 23. Qf5 {[%clk 0:00:48.8]}
23... Rfd8 {[%clk 0:01:16.7]} 24. Qf3 {[%clk 0:00:41.4]} 24... Bf6 {[%clk
0:01:12.1]} 25. Bc5 {[%clk 0:00:37.4]} 25... Qe6 {[%clk 0:01:09.8]} 26. Qxb7
{[%clk 0:00:32.3]} 26... h5 {[%clk 0:01:01.8]} 27. Rfe1 {[%clk 0:00:29.3]} 27...
Qf5 {[%clk 0:00:55.3]} 28. Rxd8+ {[%clk 0:00:21.9]} 28... Rxd8 {[%clk
0:00:54.9]} 29. Qe4 {[%clk 0:00:22]} 29... Qg5 {[%clk 0:00:47]} 30. Be3 {[%clk
0:00:18.8]} 30... Qb5 {[%clk 0:00:42.5]} 31. Qf3 {[%clk 0:00:14.2]} 31... h4
{[%clk 0:00:42]} 32. gxh4 {[%clk 0:00:12.8]} 32... Bxh4 {[%clk 0:00:40.3]} 33.
Rh1 {[%clk 0:00:13.4]} 33... Bf6 {[%clk 0:00:34]} 34. Qh5 {[%clk 0:00:13.7]}
34... Kf8 {[%clk 0:00:32.6]} 35. Qxb5 {[%clk 0:00:06.2]} 35... axb5 {[%clk
0:00:31.8]} 36. Rh8+ {[%clk 0:00:06.2]} 36... Ke7 {[%clk 0:00:31.6]} 37. Bc5+
{[%clk 0:00:06.7]} 37... Kd7 {[%clk 0:00:31.2]} 38. Rh5 {[%clk 0:00:03.1]} 38...
Re8 {[%clk 0:00:30]} 39. Be3 {[%clk 0:00:03.3]} 39... Kc6 {[%clk 0:00:30.4]} 40.
Rc5+ {[%clk 0:00:03.2]} 40... Kd6 {[%clk 0:00:29]} 41. Rxb5 {[%clk 0:00:03.7]}
41... Ra8 {[%clk 0:00:28.7]} 42. Ra5 {[%clk 0:00:03.6]} 42... Rc8 {[%clk
0:00:28.8]} 43. Ra6+ {[%clk 0:00:03.8]} 43... Ke5 {[%clk 0:00:28.1]} 44. Ra5+
{[%clk 0:00:03.6]} 44... Ke4 {[%clk 0:00:28.4]} 45. Rc5 {[%clk 0:00:04.2]} 45...
Rh8 {[%clk 0:00:26.6]} 46. Rc4+ {[%clk 0:00:03.8]} 46... Kf5 {[%clk 0:00:25.9]}
47. a4 {[%clk 0:00:03.8]} 47... Be5 {[%clk 0:00:26.1]} 48. a5 {[%clk 0:00:03.9]}
48... Rh2+ {[%clk 0:00:25.7]} 49. Kf3 {[%clk 0:00:04.6]} 49... Rh3+ {[%clk
0:00:25.8]} 50. Ke2 {[%clk 0:00:04.7]} 50... g5 {[%clk 0:00:26.7]} 51. a6 {[%clk
0:00:04.9]} 51... Rh8 {[%clk 0:00:26.9]} 52. a7 {[%clk 0:00:05.1]} 52... g4
{[%clk 0:00:26.2]} 53. b5 {[%clk 0:00:04.5]} 53... Ke6 {[%clk 0:00:24.8]} 54. b6
{[%clk 0:00:04.6]} 54... Kd5 {[%clk 0:00:25.1]} 55. Rc5+ {[%clk 0:00:05.1]}
55... Kd6 {[%clk 0:00:25.5]} 56. b7 {[%clk 0:00:05.3]} 56... Kd7 {[%clk
0:00:23.2]} 57. a8=Q {[%clk 0:00:05]} 57... Rxa8 {[%clk 0:00:22.6]} 58. bxa8=Q
{[%clk 0:00:05.9]} 58... Ke6 {[%clk 0:00:23.2]} 59. Qc8+ {[%clk 0:00:06.1]}
59... Kf6 {[%clk 0:00:23.2]} 60. Rc6+ {[%clk 0:00:06]} 60... Kg7 {[%clk
0:00:21.2]} 61. Qxg4+ {[%clk 0:00:06.5]} 1-0

[Event "*** Titled Tuesday Blitz"]
[Site "Chess.com"]
[Date "2021.02.16"]
[Round "2"]
[White "Fortitudine"]
[Black "Ranindu2003"]
[Result "1-0"]
[WhiteElo "2340"]
[BlackElo "2573"]
[TimeControl "180+1"]
[EndTime "10:20:15 PST"]
[Termination "Fortitudine won by resignation"]

1. c4 {[%clk 0:03:00.9]} 1... e6 {[%clk 0:02:59.4]} 2. Nf3 {[%clk 0:02:59.9]}
2... d5 {[%clk 0:02:59.4]} 3. g3 {[%clk 0:02:59.2]} 3... Nf6 {[%clk 0:02:58.7]}
4. Bg2 {[%clk 0:02:59.5]} 4... dxc4 {[%clk 0:02:58.6]} 5. O-O {[%clk 0:02:58.7]}
5... Be7 {[%clk 0:02:57.1]} 6. Na3 {[%clk 0:02:58.8]} 6... O-O {[%clk
0:02:53.2]} 7. Nxc4 {[%clk 0:02:58.5]} 7... c5 {[%clk 0:02:54.1]} 8. b3 {[%clk
0:02:56.3]} 8... Nc6 {[%clk 0:02:52]} 9. Bb2 {[%clk 0:02:55.6]} 9... a6 {[%clk
0:02:52.2]} 10. Rc1 {[%clk 0:02:53]} 10... Rb8 {[%clk 0:02:49.7]} 11. Nfe5
{[%clk 0:02:48.5]} 11... Nb4 {[%clk 0:02:40]} 12. a3 {[%clk 0:02:42.9]} 12...
Nbd5 {[%clk 0:02:40]} 13. d4 {[%clk 0:02:30.2]} 13... b5 {[%clk 0:02:25.4]} 14.
Nc6 {[%clk 0:02:27.1]} 14... Qc7 {[%clk 0:02:25.4]} 15. Nxe7+ {[%clk 0:02:23]}
15... Qxe7 {[%clk 0:01:53.5]} 16. Ne5 {[%clk 0:02:22.7]} 16... Bb7 {[%clk
0:01:39.8]} 17. Rxc5 {[%clk 0:02:17.8]} 17... Rfd8 {[%clk 0:01:39.9]} 18. e3
{[%clk 0:02:11.2]} 18... b4 {[%clk 0:01:37.6]} 19. Qd2 {[%clk 0:01:52.7]} 19...
Nf4 {[%clk 0:01:02.1]} 20. gxf4 {[%clk 0:00:57.8]} 20... Bxg2 {[%clk 0:00:26.8]}
21. Kxg2 {[%clk 0:00:35.2]} 21... Ne4 {[%clk 0:00:13.7]} 22. Qc2 {[%clk
0:00:30.9]} 22... Nxc5 {[%clk 0:00:13.7]} 23. dxc5 {[%clk 0:00:30.1]} 23... Rdc8
{[%clk 0:00:10.2]} 24. axb4 {[%clk 0:00:26.7]} 24... Rxb4 {[%clk 0:00:09.5]} 25.
Ba3 {[%clk 0:00:26.4]} 25... Rbb8 {[%clk 0:00:09.2]} 26. b4 {[%clk 0:00:26.4]}
26... f6 {[%clk 0:00:08.2]} 27. Nf3 {[%clk 0:00:24.8]} 27... g5 {[%clk
0:00:08.5]} 28. fxg5 {[%clk 0:00:24.6]} 28... fxg5 {[%clk 0:00:09.4]} 29. Rg1
{[%clk 0:00:24.9]} 29... Kh8 {[%clk 0:00:09.2]} 30. Qc3+ {[%clk 0:00:24.6]}
30... Kg8 {[%clk 0:00:07.6]} 31. Kf1 {[%clk 0:00:23.1]} 31... h6 {[%clk
0:00:07.9]} 32. h4 {[%clk 0:00:23.4]} 32... Rf8 {[%clk 0:00:07.1]} 33. hxg5
{[%clk 0:00:20.4]} 33... h5 {[%clk 0:00:05.1]} 34. Nh4 {[%clk 0:00:19.2]} 34...
Qf7 {[%clk 0:00:04.1]} 35. Rg2 {[%clk 0:00:18.3]} 35... a5 {[%clk 0:00:03.2]}
36. g6 {[%clk 0:00:15]} 36... Qd7 {[%clk 0:00:03.5]} 37. Nf3 {[%clk 0:00:13]}
37... Qd1+ {[%clk 0:00:03.6]} 38. Ne1 {[%clk 0:00:13.5]} 38... axb4 {[%clk
0:00:04.2]} 39. Bxb4 {[%clk 0:00:14.4]} 39... Qd5 {[%clk 0:00:03.7]} 40. Kg1
{[%clk 0:00:13.3]} 40... Rf5 {[%clk 0:00:03.9]} 41. e4 {[%clk 0:00:13.4]} 41...
Qxe4 {[%clk 0:00:03.8]} 42. Qg3 {[%clk 0:00:13.7]} 42... h4 {[%clk 0:00:03.6]}
43. Qxb8+ {[%clk 0:00:13.5]} 43... Kg7 {[%clk 0:00:03.4]} 44. Qc7+ {[%clk
0:00:13.4]} 44... Kh6 {[%clk 0:00:03.9]} 45. Qd6 {[%clk 0:00:13.1]} 45... h3
{[%clk 0:00:03.7]} 46. Qd2+ {[%clk 0:00:14]} 46... Kg7 {[%clk 0:00:03]} 47. Rg3
{[%clk 0:00:14.5]} 47... h2+ {[%clk 0:00:02.9]} 48. Kxh2 {[%clk 0:00:13.4]}
48... Rh5+ {[%clk 0:00:03.6]} 49. Rh3 {[%clk 0:00:14.3]} 49... Qe5+ {[%clk
0:00:04]} 50. f4 {[%clk 0:00:14.4]} 50... Rxh3+ {[%clk 0:00:04.3]} 51. Kxh3
{[%clk 0:00:15.3]} 51... Qh5+ {[%clk 0:00:04.8]} 52. Kg3 {[%clk 0:00:16]} 52...
Qxg6+ {[%clk 0:00:05.5]} 53. Kf2 {[%clk 0:00:16.6]} 53... Qe4 {[%clk 0:00:05.5]}
54. Qc3+ {[%clk 0:00:17]} 54... Kg6 {[%clk 0:00:05.4]} 55. Nf3 {[%clk
0:00:17.9]} 55... Qxf4 {[%clk 0:00:04.2]} 56. Qd3+ {[%clk 0:00:18.3]} 56... Kf7
{[%clk 0:00:04.5]} 57. Bc3 {[%clk 0:00:18.9]} 57... Qg4 {[%clk 0:00:04.1]} 58.
Qd7+ {[%clk 0:00:19]} 58... Kg6 {[%clk 0:00:04]} 59. Qg7+ {[%clk 0:00:18.8]}
59... Kf5 {[%clk 0:00:03.9]} 60. Qxg4+ {[%clk 0:00:19.7]} 1-0

[Event "*** Titled Tuesday Blitz"]
[Site "Chess.com"]
[Date "2021.02.16"]
[Round "2"]
[White "Doudou2015"]
[Black "Chessbard1972"]
[Result "1-0"]
[WhiteElo "2064"]
[BlackElo "2369"]
[TimeControl "180+1"]
[EndTime "10:20:15 PST"]
[Termination "Doudou2015 won on time"]

1. Nf3 {[%clk 0:02:55.8]} 1... Nf6 {[%clk 0:02:58.9]} 2. g3 {[%clk 0:02:56.7]}
2... g6 {[%clk 0:02:59]} 3. Bg2 {[%clk 0:02:57.6]} 3... Bg7 {[%clk 0:02:59.3]}
4. O-O {[%clk 0:02:58.5]} 4... O-O {[%clk 0:02:59.6]} 5. d3 {[%clk 0:02:59.4]}
5... d5 {[%clk 0:02:59.2]} 6. Nbd2 {[%clk 0:03:00.3]} 6... c5 {[%clk 0:02:58.7]}
7. e4 {[%clk 0:03:01.2]} 7... Nc6 {[%clk 0:02:58.8]} 8. Re1 {[%clk 0:02:59.5]}
8... Qc7 {[%clk 0:02:57.6]} 9. h3 {[%clk 0:02:55.2]} 9... Rd8 {[%clk 0:02:56.6]}
10. Qe2 {[%clk 0:02:55.4]} 10... b6 {[%clk 0:02:53.2]} 11. e5 {[%clk 0:02:48.9]}
11... Ne8 {[%clk 0:02:50.7]} 12. Nf1 {[%clk 0:02:49.4]} 12... Bb7 {[%clk
0:02:41.2]} 13. Bf4 {[%clk 0:02:48.3]} 13... e6 {[%clk 0:02:40]} 14. h4 {[%clk
0:02:46.4]} 14... Nd4 {[%clk 0:02:34.9]} 15. Nxd4 {[%clk 0:02:42.8]} 15... cxd4
{[%clk 0:02:34.7]} 16. Nh2 {[%clk 0:02:43.2]} 16... Rac8 {[%clk 0:02:34.3]} 17.
Rac1 {[%clk 0:02:42.7]} 17... h5 {[%clk 0:02:29.9]} 18. Nf3 {[%clk 0:02:42.1]}
18... Qd7 {[%clk 0:02:26.7]} 19. Nxd4 {[%clk 0:02:40.6]} 19... Qa4 {[%clk
0:02:20.2]} 20. c3 {[%clk 0:02:21.5]} 20... Ba6 {[%clk 0:02:10.7]} 21. b3 {[%clk
0:02:18.6]} 21... Qd7 {[%clk 0:02:04.6]} 22. Nf3 {[%clk 0:02:13.2]} 22... Nc7
{[%clk 0:01:58.8]} 23. Qe3 {[%clk 0:02:08.5]} 23... Nb5 {[%clk 0:01:49.3]} 24.
d4 {[%clk 0:02:07]} 24... Na3 {[%clk 0:01:46.4]} 25. Bh6 {[%clk 0:01:53.2]}
25... Bh8 {[%clk 0:01:45.6]} 26. Bh3 {[%clk 0:01:40.1]} 26... Rc7 {[%clk
0:01:41.7]} 27. Nd2 {[%clk 0:01:09.7]} 27... Rdc8 {[%clk 0:01:36.1]} 28. g4
{[%clk 0:01:07.7]} 28... hxg4 {[%clk 0:01:35.1]} 29. Bxg4 {[%clk 0:01:07.3]}
29... Nb5 {[%clk 0:01:33.4]} 30. Nb1 {[%clk 0:01:06.6]} 30... Qe7 {[%clk
0:01:21.3]} 31. h5 {[%clk 0:01:05.7]} 31... Qh4 {[%clk 0:01:13.3]} 32. Qf3
{[%clk 0:00:55.9]} 32... gxh5 {[%clk 0:00:51.4]} 33. Bh3 {[%clk 0:00:37.5]}
33... Kh7 {[%clk 0:00:48.1]} 34. Bf4 {[%clk 0:00:37.1]} 34... Rg8+ {[%clk
0:00:45.7]} 35. Bg3 {[%clk 0:00:37.5]} 35... Qxh3 {[%clk 0:00:44.2]} 36. Qd3+
{[%clk 0:00:32.8]} 36... Rg6 {[%clk 0:00:41.3]} 37. Re3 {[%clk 0:00:18.9]} 37...
h4 {[%clk 0:00:39.1]} 38. Rf3 {[%clk 0:00:19.4]} 38... hxg3 {[%clk 0:00:34.8]}
39. fxg3 {[%clk 0:00:20.3]} 39... Qh6 {[%clk 0:00:24.9]} 40. Rc2 {[%clk
0:00:19.7]} 40... Rd7 {[%clk 0:00:19.1]} 41. Rh2 {[%clk 0:00:19.5]} 41... Nc7
{[%clk 0:00:15.9]} 42. Rxh6+ {[%clk 0:00:19.3]} 42... Kxh6 {[%clk 0:00:16.2]}
43. Qe3+ {[%clk 0:00:20.2]} 43... Kg7 {[%clk 0:00:15.5]} 44. Rf4 {[%clk
0:00:19.8]} 44... Kg8 {[%clk 0:00:14]} 45. Rh4 {[%clk 0:00:20.5]} 45... Bg7
{[%clk 0:00:13.9]} 46. Qf4 {[%clk 0:00:21]} 46... Ne8 {[%clk 0:00:12.2]} 47. Qf3
{[%clk 0:00:21.3]} 47... f5 {[%clk 0:00:10.2]} 48. Kf2 {[%clk 0:00:21.4]} 48...
Rf7 {[%clk 0:00:08.6]} 49. Nd2 {[%clk 0:00:22.3]} 49... Bb5 {[%clk 0:00:05]} 50.
Nf1 {[%clk 0:00:23.2]} 50... Bxf1 {[%clk 0:00:04.1]} 51. Kxf1 {[%clk 0:00:24.1]}
51... b5 {[%clk 0:00:04]} 52. Ke2 {[%clk 0:00:24.6]} 52... b4 {[%clk 0:00:04.1]}
53. Qf4 {[%clk 0:00:24.6]} 53... Nc7 {[%clk 0:00:03.4]} 54. Kd3 {[%clk
0:00:24.5]} 54... bxc3 {[%clk 0:00:02.5]} 55. Kxc3 {[%clk 0:00:25.4]} 55... Nb5+
{[%clk 0:00:02.8]} 56. Kb2 {[%clk 0:00:26.1]} 56... Nc7 {[%clk 0:00:02.1]} 57.
a4 {[%clk 0:00:26.9]} 57... a5 {[%clk 0:00:02.4]} 58. Ka3 {[%clk 0:00:27.5]}
58... Na6 {[%clk 0:00:02.9]} 59. Qc1 {[%clk 0:00:27.4]} 59... Nb4 {[%clk
0:00:03.8]} 60. Qc8+ {[%clk 0:00:27.4]} 60... Bf8 {[%clk 0:00:04.7]} 61. Qa8
{[%clk 0:00:27.3]} 61... Nc6+ {[%clk 0:00:04.5]} 62. Ka2 {[%clk 0:00:25.1]}
62... Nb4+ {[%clk 0:00:04.2]} 63. Kb1 {[%clk 0:00:24.6]} 63... Nd3 {[%clk
0:00:03.5]} 64. Qxa5 {[%clk 0:00:24.5]} 64... Rxg3 {[%clk 0:00:02.9]} 65. Qd2
{[%clk 0:00:24.4]} 65... Rg1+ {[%clk 0:00:01.6]} 66. Ka2 {[%clk 0:00:24.1]} 1-0

[Event "*** Titled Tuesday Blitz"]
[Site "Chess.com"]
[Date "2021.02.16"]
[Round "2"]
[White "Fusikk"]
[Black "zverr1"]
[Result "1-0"]
[WhiteElo "2707"]
[BlackElo "2466"]
[TimeControl "180+1"]
[EndTime "10:20:16 PST"]
[Termination "Fusikk won by resignation"]

1. e4 {[%clk 0:03:00.9]} 1... e6 {[%clk 0:02:59.7]} 2. d4 {[%clk 0:03:00.4]}
2... d5 {[%clk 0:03:00.3]} 3. Nd2 {[%clk 0:03:00.2]} 3... c5 {[%clk 0:03:00.8]}
4. Ngf3 {[%clk 0:02:59.6]} 4... Nc6 {[%clk 0:03:00.3]} 5. exd5 {[%clk
0:02:58.8]} 5... exd5 {[%clk 0:02:58.2]} 6. Bb5 {[%clk 0:02:58.3]} 6... Qe7+
{[%clk 0:02:57.4]} 7. Qe2 {[%clk 0:02:46.9]} 7... Qxe2+ {[%clk 0:02:57.1]} 8.
Kxe2 {[%clk 0:02:47.8]} 8... a6 {[%clk 0:02:57.3]} 9. Bxc6+ {[%clk 0:02:47.9]}
9... bxc6 {[%clk 0:02:58.2]} 10. dxc5 {[%clk 0:02:46.5]} 10... Bxc5 {[%clk
0:02:59.1]} 11. Nb3 {[%clk 0:02:46.7]} 11... Bd6 {[%clk 0:02:59.8]} 12. Re1
{[%clk 0:02:47]} 12... a5 {[%clk 0:02:52.1]} 13. Kf1+ {[%clk 0:02:46.8]} 13...
Kd7 {[%clk 0:02:52]} 14. Be3 {[%clk 0:02:46.1]} 14... Ba6+ {[%clk 0:02:42.8]}
15. Kg1 {[%clk 0:02:45.6]} 15... Nf6 {[%clk 0:02:39.2]} 16. Nxa5 {[%clk
0:02:37.9]} 16... Ne4 {[%clk 0:02:29.7]} 17. Nd4 {[%clk 0:02:22.5]} 17... c5
{[%clk 0:02:24.5]} 18. Nf5 {[%clk 0:02:22.4]} 18... Be5 {[%clk 0:02:16.6]} 19.
f3 {[%clk 0:02:21.8]} 19... Bxb2 {[%clk 0:02:05]} 20. Rab1 {[%clk 0:02:15.4]}
20... Bc3 {[%clk 0:02:03.7]} 21. Red1 {[%clk 0:02:15.8]} 21... Bxa5 {[%clk
0:01:50.3]} 22. Rxd5+ {[%clk 0:02:13.4]} 22... Ke6 {[%clk 0:01:49.8]} 23. fxe4
{[%clk 0:02:13.3]} 23... Bc4 {[%clk 0:01:48.3]} 24. Rxc5 {[%clk 0:02:08.1]}
24... Bxa2 {[%clk 0:01:47.9]} 25. Rb7 {[%clk 0:02:01.8]} 25... Kf6 {[%clk
0:01:33.1]} 26. c4 {[%clk 0:01:30.1]} 26... Rhc8 {[%clk 0:01:26.9]} 27. Rxc8
{[%clk 0:00:39.8]} 27... Rxc8 {[%clk 0:01:27.8]} 28. Nd6 {[%clk 0:00:31.2]}
28... Ra8 {[%clk 0:00:53.9]} 29. Rxf7+ {[%clk 0:00:24.8]} 29... Ke6 {[%clk
0:00:54]} 30. c5 {[%clk 0:00:22.6]} 30... Bc3 {[%clk 0:00:36.7]} 31. Rf1 {[%clk
0:00:22.5]} 31... Be5 {[%clk 0:00:34.2]} 32. Nf5 {[%clk 0:00:20.1]} 32... Bc4
{[%clk 0:00:31.6]} 33. Rc1 {[%clk 0:00:18.7]} 33... Bd3 {[%clk 0:00:30.7]} 34.
Nd4+ {[%clk 0:00:15.8]} 34... Bxd4 {[%clk 0:00:29.8]} 35. Bxd4 {[%clk
0:00:16.7]} 35... Bxe4 {[%clk 0:00:29.7]} 36. c6 {[%clk 0:00:12.8]} 36... Rc8
{[%clk 0:00:15.9]} 37. c7 {[%clk 0:00:13]} 37... Kd7 {[%clk 0:00:14.9]} 38. Bb6
{[%clk 0:00:13.4]} 38... g6 {[%clk 0:00:14.7]} 39. Re1 {[%clk 0:00:11.7]} 39...
Bf5 {[%clk 0:00:13.7]} 40. Ba5 {[%clk 0:00:11.1]} 40... Kc6 {[%clk 0:00:14.2]}
41. Rd1 {[%clk 0:00:09.4]} 41... Kb5 {[%clk 0:00:14.4]} 42. Rd5+ {[%clk
0:00:07.4]} 42... Kc6 {[%clk 0:00:14.9]} 43. Rd8 {[%clk 0:00:07.5]} 43... Kb5
{[%clk 0:00:13.6]} 44. Rd5+ {[%clk 0:00:07.5]} 44... Kc6 {[%clk 0:00:13.3]} 45.
Re5 {[%clk 0:00:07.9]} 45... Kd6 {[%clk 0:00:13.1]} 46. Rb5 {[%clk 0:00:07.9]}
46... Kc6 {[%clk 0:00:13.4]} 47. Rb8 {[%clk 0:00:07.1]} 47... h5 {[%clk
0:00:11.7]} 48. Kf2 {[%clk 0:00:07.2]} 48... Be6 {[%clk 0:00:10.5]} 49. Ke3
{[%clk 0:00:07.1]} 49... Bf5 {[%clk 0:00:11.1]} 50. Kf4 {[%clk 0:00:07.3]} 50...
Kd5 {[%clk 0:00:11]} 51. h3 {[%clk 0:00:07.5]} 51... Kc6 {[%clk 0:00:10.1]} 52.
g4 {[%clk 0:00:07.6]} 52... hxg4 {[%clk 0:00:11]} 53. hxg4 {[%clk 0:00:08.5]}
53... Bd7 {[%clk 0:00:11.1]} 54. Kg5 {[%clk 0:00:08.6]} 54... Kd5 {[%clk
0:00:10.9]} 55. Kf4 {[%clk 0:00:07.7]} 55... Kc6 {[%clk 0:00:11]} 56. g5 {[%clk
0:00:08.2]} 56... Bf5 {[%clk 0:00:10.5]} 57. Ke5 {[%clk 0:00:08.5]} 57... Bg4
{[%clk 0:00:09.9]} 58. Kf6 {[%clk 0:00:08.6]} 58... Bf5 {[%clk 0:00:10.4]} 59.
Rxc8 {[%clk 0:00:08.2]} 59... Bxc8 {[%clk 0:00:10]} 60. Kxg6 {[%clk 0:00:09.1]}
60... Kb5 {[%clk 0:00:09.4]} 61. Be1 {[%clk 0:00:08.9]} 61... Kc6 {[%clk
0:00:09.9]} 62. Bg3 {[%clk 0:00:09.8]} 62... Kd7 {[%clk 0:00:09.3]} 63. Kf7
{[%clk 0:00:10]} 63... Ba6 {[%clk 0:00:09.2]} 64. g6 {[%clk 0:00:10.9]} 64...
Bc4+ {[%clk 0:00:09.6]} 65. Kf8 {[%clk 0:00:11.2]} 1-0

[Event "*** Titled Tuesday Blitz"]
[Site "Chess.com"]
[Date "2021.02.16"]
[Round "2"]
[White "rasmussvane"]
[Black "lagedema"]
[Result "1-0"]
[WhiteElo "2916"]
[BlackElo "2562"]
[TimeControl "180+1"]
[EndTime "10:20:17 PST"]
[Termination "rasmussvane won by resignation"]

1. Nf3 {[%clk 0:03:00.9]} 1... d5 {[%clk 0:02:58.7]} 2. g3 {[%clk 0:03:00.9]}
2... Nf6 {[%clk 0:02:58.5]} 3. Bg2 {[%clk 0:03:00.1]} 3... c6 {[%clk 0:02:58.7]}
4. O-O {[%clk 0:03:00.1]} 4... Bf5 {[%clk 0:02:59]} 5. c4 {[%clk 0:03:00]} 5...
e6 {[%clk 0:02:59]} 6. Qb3 {[%clk 0:03:00.3]} 6... Qb6 {[%clk 0:02:58.7]} 7. d3
{[%clk 0:03:00.8]} 7... Nbd7 {[%clk 0:02:57.6]} 8. cxd5 {[%clk 0:03:01.2]} 8...
exd5 {[%clk 0:02:57.2]} 9. Qc2 {[%clk 0:03:00.7]} 9... Be7 {[%clk 0:02:54.6]}
10. Nc3 {[%clk 0:02:57.5]} 10... O-O {[%clk 0:02:51.3]} 11. e4 {[%clk
0:02:57.7]} 11... dxe4 {[%clk 0:02:51.8]} 12. dxe4 {[%clk 0:02:58.6]} 12... Bg6
{[%clk 0:02:51]} 13. Be3 {[%clk 0:02:57.4]} 13... Qc7 {[%clk 0:02:49.9]} 14. Nh4
{[%clk 0:02:57.8]} 14... Rfe8 {[%clk 0:02:44.3]} 15. h3 {[%clk 0:02:52.8]} 15...
Bc5 {[%clk 0:02:34.4]} 16. Bf4 {[%clk 0:02:46.9]} 16... Qa5 {[%clk 0:02:14.1]}
17. a3 {[%clk 0:02:32.9]} 17... Bd4 {[%clk 0:02:05.9]} 18. Nxg6 {[%clk
0:02:29.6]} 18... hxg6 {[%clk 0:02:05.6]} 19. Ne2 {[%clk 0:02:28.6]} 19... Bb6
{[%clk 0:01:59.2]} 20. Rad1 {[%clk 0:02:24.6]} 20... Ne5 {[%clk 0:01:43.7]} 21.
Kh1 {[%clk 0:02:15.8]} 21... Nh5 {[%clk 0:01:42.8]} 22. Bc1 {[%clk 0:02:04]}
22... Rad8 {[%clk 0:01:39.5]} 23. f4 {[%clk 0:01:59.4]} 23... Nd7 {[%clk
0:01:37.7]} 24. e5 {[%clk 0:01:56]} 24... g5 {[%clk 0:01:22.3]} 25. Bf3 {[%clk
0:01:29.7]} 25... Nxg3+ {[%clk 0:01:21.5]} 26. Nxg3 {[%clk 0:01:29.5]} 26...
gxf4 {[%clk 0:01:22.4]} 27. Nh5 {[%clk 0:01:21.4]} 27... Nxe5 {[%clk 0:01:18.6]}
28. Qg2 {[%clk 0:01:21.4]} 28... Ng6 {[%clk 0:01:15.7]} 29. Rxd8 {[%clk
0:01:16.6]} 29... Rxd8 {[%clk 0:01:15.2]} 30. Nxf4 {[%clk 0:01:15.3]} 30... Nh4
{[%clk 0:01:13]} 31. Qg4 {[%clk 0:01:12]} 31... Nxf3 {[%clk 0:01:11.6]} 32. Qxf3
{[%clk 0:01:11.3]} 32... Qf5 {[%clk 0:01:07.6]} 33. Kg2 {[%clk 0:01:03.1]} 33...
Rd6 {[%clk 0:01:00.9]} 34. Re1 {[%clk 0:00:45.6]} 34... Qc2+ {[%clk 0:00:59.9]}
35. Qe2 {[%clk 0:00:30.9]} 35... Qf5 {[%clk 0:00:49]} 36. Qe8+ {[%clk 0:00:29]}
36... Kh7 {[%clk 0:00:49.2]} 37. Qe4 {[%clk 0:00:29.5]} 37... Qxe4+ {[%clk
0:00:49.6]} 38. Rxe4 {[%clk 0:00:30.4]} 38... Rd1 {[%clk 0:00:48.8]} 39. Be3
{[%clk 0:00:24.5]} 39... Rb1 {[%clk 0:00:47.9]} 40. Bxb6 {[%clk 0:00:23.7]}
40... axb6 {[%clk 0:00:48.8]} 41. Nd3 {[%clk 0:00:23.7]} 41... Kg6 {[%clk
0:00:46.2]} 42. Re7 {[%clk 0:00:23.5]} 42... Rd1 {[%clk 0:00:45.4]} 43. Nf2
{[%clk 0:00:20.6]} 43... Rd2 {[%clk 0:00:44.8]} 44. b4 {[%clk 0:00:21]} 44... c5
{[%clk 0:00:37.3]} 45. Rxb7 {[%clk 0:00:20.5]} 45... cxb4 {[%clk 0:00:37.1]} 46.
Rxb6+ {[%clk 0:00:20.5]} 46... f6 {[%clk 0:00:36.8]} 47. axb4 {[%clk 0:00:20.5]}
47... Rb2 {[%clk 0:00:36.6]} 48. b5 {[%clk 0:00:20.8]} 48... Kf5 {[%clk
0:00:36.3]} 49. Rb7 {[%clk 0:00:21.1]} 49... g5 {[%clk 0:00:35.8]} 50. Kf3
{[%clk 0:00:20.9]} 50... Rb3+ {[%clk 0:00:35.3]} 51. Ke2 {[%clk 0:00:21.4]}
51... Kf4 {[%clk 0:00:34.1]} 52. b6 {[%clk 0:00:21.9]} 52... f5 {[%clk 0:00:34]}
53. Rb8 {[%clk 0:00:14.2]} 53... Rb2+ {[%clk 0:00:33.3]} 54. Ke1 {[%clk
0:00:12.5]} 54... Kf3 {[%clk 0:00:33.2]} 55. Nd3 {[%clk 0:00:11.7]} 55... Rb3
{[%clk 0:00:31.6]} 56. Kd2 {[%clk 0:00:10.6]} 56... Kg3 {[%clk 0:00:29.7]} 57.
b7 {[%clk 0:00:10.1]} 57... g4 {[%clk 0:00:29.8]} 58. hxg4 {[%clk 0:00:09.6]}
58... fxg4 {[%clk 0:00:29.9]} 59. Nc5 {[%clk 0:00:10]} 59... Rb2+ {[%clk
0:00:28.8]} 60. Kc3 {[%clk 0:00:10.1]} 60... Rb5 {[%clk 0:00:28.6]} 61. Kc4
{[%clk 0:00:09.8]} 61... Rb1 {[%clk 0:00:28.8]} 62. Rg8 {[%clk 0:00:09.8]} 62...
Kh3 {[%clk 0:00:28.6]} 63. b8=Q {[%clk 0:00:09.9]} 63... Rxb8 {[%clk 0:00:28.8]}
64. Rxb8 {[%clk 0:00:10.8]} 64... g3 {[%clk 0:00:29.7]} 65. Nd3 {[%clk
0:00:11.4]} 65... g2 {[%clk 0:00:29.6]} 66. Nf4+ {[%clk 0:00:11.6]} 66... Kg3
{[%clk 0:00:29.8]} 67. Nxg2 {[%clk 0:00:12.5]} 1-0